fUST/lending_fUST_20260415
["ID","MTS","AMOUNT","RATE_DAILY","PERIOD"]
[420545575,1776263490393,-2000.0,0.000137,2]
[420545576,1776263490403,-2000.0,0.000137,2]
[420545577,1776263490414,-2000.0,0.000137,2]
[420545578,1776263490423,-2000.0,0.000137,2]
[420545579,1776263490433,-2000.0,0.000137,2]
[420545580,1776263490442,-2017.0,0.000137,2]
[420545581,1776263490453,-350.0,0.00013705,2]
[420545582,1776263490463,-350.0,0.00013705,2]
[420545583,1776263490472,-350.0,0.00013705,2]
[420545584,1776263490482,-350.0,0.00013705,2]
[420545585,1776263490492,-350.0,0.00013705,2]
[420545586,1776263490503,-350.0,0.00013705,2]
[420545587,1776263490512,-350.0,0.00013705,2]
[420545588,1776263490522,-350.0,0.00013705,2]
[420545589,1776263490531,-284.0,0.00013705,2]
[420545590,1776263490541,-572.40585756,0.0001371,14]
[420545591,1776263490551,-151.0,0.00013721,2]
[420545592,1776263490560,-151.0,0.00013721,2]
[420545593,1776263490569,-2000.0,0.00013723,2]
[420545594,1776263490579,-2000.0,0.00013723,2]
[420545595,1776263490588,-2000.0,0.00013723,2]
[420545596,1776263490597,-2000.0,0.00013723,2]
[420545597,1776263490607,-2000.0,0.00013723,2]
[420545598,1776263490616,-2000.0,0.00013723,2]
[420545599,1776263490625,-2000.0,0.00013723,2]
[420545600,1776263490636,-2000.0,0.00013723,2]
[420545601,1776263490647,-2000.0,0.00013723,2]
[420545602,1776263490657,-2000.0,0.00013723,2]
[420545603,1776263490666,-151.0,0.00013723,2]
[420545604,1776263490679,-662.53951612,0.00013842,14]
[420545605,1776263490691,-200.0,0.000139,2]
[420545606,1776263490701,-202.32302261,0.000139,2]
[420545607,1776263490711,-359.68902567,0.00013904,2]
[420545608,1776263490729,-5000.0,0.00013904,2]
[420545609,1776263490740,-587.31281038,0.00013906,14]
[420545610,1776263490754,-709.12769178,0.00013968,14]
[420545611,1776263490768,-160.0,0.00013971,2]
[420545612,1776263490777,-200.0,0.00013971,2]
[420545613,1776263490798,-186.59092026,0.00013971,2]
[420545614,1776263490812,-200.0,0.00013971,2]
[420545615,1776263490823,-200.0,0.00013971,2]
[420545616,1776263490836,-1859.1153,0.00013972,2]
[420545617,1776263490851,-1000.0,0.00013972,2]
[420545618,1776263490864,-533.54,0.00013972,2]
[420545619,1776263490877,-576.9,0.00013972,2]
[420545620,1776263490892,-1289.98,0.00013972,2]
[420545621,1776263490910,-500.0,0.00013972,2]
[420545622,1776263490922,-1540.37,0.00013972,2]
[420545623,1776263490939,-1412.75,0.00013972,2]
[420545624,1776263490958,-729.56,0.00013972,2]
[420545625,1776263490974,-500.0,0.00013972,2]
[420545626,1776263490999,-500.0,0.00013972,2]
[420545627,1776263491013,-3172.34,0.00013972,2]
[420545628,1776263491045,-225.98612985,0.00013972,2]
[420545629,1776263491059,-2515.23,0.00013972,2]
[420545630,1776263491079,-1966.97,0.00013972,2]
[420545631,1776263491102,-624.71,0.00013972,2]
[420545632,1776263491131,-500.0,0.00013972,2]
[420545633,1776263491153,-639.56,0.00013972,2]
[420545634,1776263491167,-3564.19,0.00013972,2]
[420545635,1776263491199,-2202.65,0.00013972,2]
[420545636,1776263491222,-644.76,0.00013972,2]
[420545637,1776263491252,-14225.47,0.00013972,2]
[420545638,1776263491280,-1429.77,0.00013972,2]
[420545639,1776263491298,-500.0,0.00013972,2]
[420545640,1776263491325,-3841.63,0.00013972,2]
[420545641,1776263491342,-2341.97,0.00013972,2]
[420545642,1776263491374,-588.56,0.00013972,2]
[420545643,1776263491398,-2716.01,0.00013972,2]
[420545644,1776263491417,-3232.39,0.00013972,2]
[420545645,1776263491442,-287.28578785,0.00013972,2]
[420545646,1776263491460,-500.0,0.00013972,2]
[420545647,1776263491480,-597.54504641,0.00013972,2]
[420545648,1776263491493,-756.62,0.00013972,2]
[420545649,1776263491507,-500.0,0.00013972,2]
[420545650,1776263491525,-500.0,0.00013972,2]
[420545651,1776263491536,-500.0,0.00013972,2]
[420545652,1776263491551,-500.0,0.00013972,2]
[420545653,1776263491565,-512.75,0.00013972,2]
[420545654,1776263491575,-560.3,0.00013972,2]
[420545655,1776263491590,-500.0,0.00013972,2]
[420545656,1776263491605,-1546.15,0.00013972,2]
[420545657,1776263491616,-911.89,0.00013972,2]
[420545658,1776263491625,-2506.81,0.00013972,2]
[420545659,1776263491643,-7766.94,0.00013972,2]
[420545660,1776263491657,-2496.09,0.00013972,2]
[420545661,1776263491666,-690.12,0.00013972,2]
[420545662,1776263491682,-2233.41,0.00013972,2]
[420545663,1776263491697,-26725.09,0.00013972,2]
[420545664,1776263491707,-1997.44,0.00013972,2]
[420545665,1776263491722,-3601.26,0.00013972,2]
[420545666,1776263491739,-3021.11,0.00013972,2]
[420545667,1776263491748,-5610.92,0.00013972,2]
[420545668,1776263491758,-780.85,0.00013972,2]
[420545669,1776263491773,-9430.67,0.00013972,2]
[420545670,1776263491786,-510.84,0.00013972,2]
[420545671,1776263491796,-6380.11,0.00013972,2]
[420545672,1776263491806,-511.82,0.00013972,2]
[420545673,1776263491824,-1423.18,0.00013972,2]
[420545674,1776263491836,-3995.52,0.00013972,2]
[420545675,1776263491844,-500.0,0.00013972,2]
[420545676,1776263491858,-2934.12,0.00013972,2]
[420545677,1776263491872,-1528.0,0.00013973,2]
[420545678,1776263491882,-160.0,0.00014,30]
[420545679,1776263491892,-43648.11316973,0.00014,2]
[420545680,1776263491904,-2000.0,0.00014014,7]
[420545681,1776263491917,-572.40585756,0.00014019,14]
[420545682,1776263491927,-745.65223616,0.00014052,2]
[420545683,1776263491936,-300.0,0.000141,2]
[420545684,1776263491946,-587.31281038,0.00014232,14]
[420545685,1776263491957,-200.0,0.00014245,2]
[420545686,1776263491967,-200.0,0.00014245,2]
[420545687,1776263492065,-1859.1153,0.00014246,2]
[420545688,1776263492076,-1000.0,0.00014246,2]
[420545689,1776263492085,-533.54,0.00014246,2]
[420545690,1776263492096,-576.9,0.00014246,2]
[420545691,1776263492105,-1289.98,0.00014246,2]
[420545692,1776263492119,-500.0,0.00014246,2]
[420545693,1776263492129,-1540.37,0.00014246,2]
[420545694,1776263492142,-1412.75,0.00014246,2]
[420545695,1776263492154,-729.56,0.00014246,2]
[420545696,1776263492164,-500.0,0.00014246,2]
[420545697,1776263492177,-547.20506059,0.00014246,2]
[420545698,1776263492190,-3172.34,0.00014246,2]
[420545699,1776263492200,-2515.23,0.00014246,2]
[420545700,1776263492210,-1966.97,0.00014246,2]
[420545701,1776263492225,-624.71,0.00014246,2]
[420545702,1776263492235,-500.0,0.00014246,2]
[420545703,1776263492246,-639.56,0.00014246,2]
[420545704,1776263492259,-3564.19,0.00014246,2]
[420545705,1776263492270,-2202.65,0.00014246,2]
[420545706,1776263492282,-644.76,0.00014246,2]
[420545707,1776263492292,-14225.47,0.00014246,2]
[420545708,1776263492305,-1429.77,0.00014246,2]
[420545709,1776263492316,-500.0,0.00014246,2]
[420545710,1776263492330,-3841.63,0.00014246,2]
[420545711,1776263492341,-2341.97,0.00014246,2]
[420545712,1776263492353,-588.56,0.00014246,2]
[420545713,1776263492368,-2716.01,0.00014246,2]
[420545714,1776263492378,-3232.39,0.00014246,2]
[420545715,1776263492391,-500.0,0.00014246,2]
[420545716,1776263492402,-756.62,0.00014246,2]
[420545717,1776263492414,-500.0,0.00014246,2]
[420545718,1776263492427,-500.0,0.00014246,2]
[420545719,1776263492441,-500.0,0.00014246,2]
[420545720,1776263492454,-500.0,0.00014246,2]
[420545721,1776263492466,-512.75,0.00014246,2]
[420545722,1776263492478,-560.3,0.00014246,2]
[420545723,1776263492493,-500.0,0.00014246,2]
[420545724,1776263492505,-1546.15,0.00014246,2]
[420545725,1776263492515,-911.89,0.00014246,2]
[420545726,1776263492526,-2506.81,0.00014246,2]
[420545727,1776263492538,-7766.94,0.00014246,2]
[420545728,1776263492550,-2496.09,0.00014246,2]
[420545729,1776263492559,-690.12,0.00014246,2]
[420545730,1776263492570,-2233.41,0.00014246,2]
[420545731,1776263492585,-26725.09,0.00014246,2]
[420545732,1776263492594,-1997.44,0.00014246,2]
[420545733,1776263492603,-3601.26,0.00014246,2]
[420545734,1776263492619,-3021.11,0.00014246,2]
[420545735,1776263492631,-5610.92,0.00014246,2]
[420545736,1776263492641,-780.85,0.00014246,2]
[420545737,1776263492651,-9430.67,0.00014246,2]
[420545738,1776263492666,-510.84,0.00014246,2]
[420545739,1776263492678,-6380.11,0.00014246,2]
[420545740,1776263492688,-511.82,0.00014246,2]
[420545741,1776263492706,-1423.18,0.00014246,2]
[420545742,1776263492720,-3995.52,0.00014246,2]
[420545743,1776263492731,-500.0,0.00014246,2]
[420545744,1776263492749,-2934.12,0.00014246,2]
[420545745,1776263492760,-1528.0,0.00014247,2]
[420545746,1776263492769,-1000.0,0.00014247,2]
[420545747,1776263492781,-1000.0,0.00014247,2]
[420545748,1776263492794,-1000.0,0.00014247,2]
[420545749,1776263492807,-1000.0,0.00014247,2]
[420545750,1776263492829,-1000.0,0.00014247,2]
[420545751,1776263492848,-1000.0,0.00014247,2]
[420545752,1776263492867,-307.93061412,0.00014247,2]
[420545753,1776263492889,-1000.0,0.00014247,2]
[420545754,1776263492910,-787.59459072,0.00014247,2]
[420545755,1776263492931,-1000.0,0.00014247,2]
[420545756,1776263492948,-1000.0,0.00014247,2]
[420545757,1776263492968,-1000.0,0.00014247,2]
[420545758,1776263492988,-1000.0,0.00014247,2]
[420545759,1776263493010,-623.35524995,0.00014247,2]
[420545760,1776263493023,-1007.94918875,0.00014247,2]
[420545761,1776263493041,-930.11290214,0.00014247,2]
[420545762,1776263493059,-979.33528714,0.00014247,2]
[420545763,1776263493078,-1000.0,0.00014247,2]
[420545764,1776263493095,-340.19175047,0.00014247,2]
[420545765,1776263493110,-767.17310826,0.00014247,2]
[420545766,1776263493127,-250.0,0.00014247,2]
[420545767,1776263493142,-1000.0,0.00014247,2]
[420545768,1776263493158,-1000.0,0.00014247,2]
[420545769,1776263493174,-1000.0,0.00014247,2]
[420545770,1776263493189,-1000.0,0.00014247,2]
[420545771,1776263493203,-1000.0,0.00014247,2]
[420545772,1776263493218,-1000.0,0.00014247,2]
[420545773,1776263493234,-1000.0,0.00014247,2]
[420545774,1776263493249,-1000.0,0.00014247,2]
[420545775,1776263493266,-1000.0,0.00014247,2]
[420545776,1776263493283,-1000.0,0.00014247,2]
[420545777,1776263493298,-1000.0,0.00014247,2]
[420545778,1776263493315,-1000.0,0.00014247,2]
[420545779,1776263493332,-1000.0,0.00014247,2]
[420545780,1776263493350,-1000.0,0.00014247,2]
[420545781,1776263493368,-250.0,0.00014247,2]
[420545782,1776263493384,-1000.0,0.00014247,2]
[420545783,1776263493404,-1000.0,0.00014247,2]
[420545784,1776263493419,-1120.04925818,0.00014247,2]
[420545785,1776263493439,-1000.0,0.00014247,2]
[420545786,1776263493456,-1000.0,0.00014247,2]
[420545787,1776263493476,-1000.0,0.00014247,2]
[420545788,1776263493496,-1000.0,0.00014247,2]
[420545789,1776263493514,-954.10717534,0.00014247,2]
[420545790,1776263493539,-1000.0,0.00014247,2]
[420545791,1776263493558,-1000.0,0.00014247,2]
[420545792,1776263493580,-1000.0,0.00014247,2]
[420545793,1776263493596,-1003.70064154,0.00014247,2]
[420545794,1776263493615,-1000.0,0.00014247,2]
[420545795,1776263493646,-1000.0,0.00014247,2]
[420545796,1776263493676,-1000.0,0.00014247,2]
[420545797,1776263493695,-1000.0,0.00014247,2]
[420545798,1776263493727,-1006.42699888,0.00014247,2]
[420545799,1776263493764,-1000.0,0.00014247,2]
[420545800,1776263493797,-1000.0,0.00014247,2]
[420545801,1776263493832,-500.0,0.00014247,2]
[420545802,1776263493863,-709.12769178,0.00014298,14]
[420545803,1776263493898,-3162.0,0.00014321,2]
[420545804,1776263493926,-572.40585756,0.00014328,14]
[420545805,1776263493954,-2000.0,0.00014329,7]
[420545806,1776263493978,-160.0,0.000144,30]
[420545807,1776263494004,-160.0,0.000144,30]
[420545808,1776263494023,-168.64059767,0.00014426,14]
[420545809,1776263494044,-354.30561241,0.00014426,14]
[420545810,1776263494063,-5500.0,0.00014452,2]
[420545811,1776263494083,-662.53951612,0.00014483,14]
[420545812,1776263494108,-1859.1153,0.0001452,2]
[420545813,1776263494127,-844.82193126,0.0001452,2]
[420545814,1776263494265,-533.54,0.0001452,2]
[420545815,1776263494276,-576.9,0.0001452,2]
[420545816,1776263494286,-1289.98,0.0001452,2]
[420545817,1776263494301,-511.86471085,0.0001452,2]
[420545818,1776263494318,-1540.37,0.0001452,2]
[420545819,1776263494329,-1412.75,0.0001452,2]
[420545820,1776263494338,-729.56,0.0001452,2]
[420545821,1776263494355,-3172.34,0.0001452,2]
[420545822,1776263494364,-2515.23,0.0001452,2]
[420545823,1776263494374,-1966.97,0.0001452,2]
[420545824,1776263494383,-624.71,0.0001452,2]
[420545825,1776263494395,-500.0,0.0001452,2]
[420545826,1776263494406,-639.56,0.0001452,2]
[420545827,1776263494416,-3564.19,0.0001452,2]
[420545828,1776263494425,-2202.65,0.0001452,2]
[420545829,1776263494439,-644.76,0.0001452,2]
[420545830,1776263494450,-14225.47,0.0001452,2]
[420545831,1776263494460,-1429.77,0.0001452,2]
[420545832,1776263494469,-500.0,0.0001452,2]
[420545833,1776263494483,-3841.63,0.0001452,2]
[420545834,1776263494494,-2341.97,0.0001452,2]
[420545835,1776263494503,-588.56,0.0001452,2]
[420545836,1776263494512,-2716.01,0.0001452,2]
[420545837,1776263494523,-3232.39,0.0001452,2]
[420545838,1776263494535,-756.62,0.0001452,2]
[420545839,1776263494546,-500.0,0.0001452,2]
[420545840,1776263494556,-500.0,0.0001452,2]
[420545841,1776263494568,-500.0,0.0001452,2]
[420545842,1776263494581,-500.0,0.0001452,2]
[420545843,1776263494591,-512.75,0.0001452,2]
[420545844,1776263494600,-560.3,0.0001452,2]
[420545845,1776263494611,-500.0,0.0001452,2]
[420545846,1776263494624,-1546.15,0.0001452,2]
[420545847,1776263494632,-911.89,0.0001452,2]
[420545848,1776263494643,-2506.81,0.0001452,2]
[420545849,1776263494653,-7766.94,0.0001452,2]
[420545850,1776263494663,-2496.09,0.0001452,2]
[420545851,1776263494673,-690.12,0.0001452,2]
[420545852,1776263494683,-2233.41,0.0001452,2]
[420545853,1776263494693,-26725.09,0.0001452,2]
[420545854,1776263494706,-1997.44,0.0001452,2]
[420545855,1776263494716,-3601.26,0.0001452,2]
[420545856,1776263494725,-3021.11,0.0001452,2]
[420545857,1776263494734,-5610.92,0.0001452,2]
[420545858,1776263494747,-780.85,0.0001452,2]
[420545859,1776263494760,-9430.67,0.0001452,2]
[420545860,1776263494769,-510.84,0.0001452,2]
[420545861,1776263494781,-6380.11,0.0001452,2]
[420545862,1776263494795,-511.82,0.0001452,2]
[420545863,1776263494805,-1423.18,0.0001452,2]
[420545864,1776263494816,-3995.52,0.0001452,2]
[420545865,1776263494828,-500.0,0.0001452,2]
[420545866,1776263494839,-2934.12,0.0001452,2]
[420545867,1776263494850,-1528.0,0.00014521,2]
[420545868,1776263494861,-2302.48719963,0.00014521,2]
[420545869,1776263494870,-587.31281038,0.00014557,14]
[420545870,1776263494883,-185.34996246,0.00014596,2]
[420545871,1776263494893,-773.2413689,0.000146,2]
[420545872,1776263494904,-709.12769178,0.00014629,14]
[420545873,1776263494914,-313.57529085,0.00014629,14]
[420545874,1776263494927,-572.40585756,0.00014637,30]
[420545875,1776263494939,-2000.0,0.00014644,7]
[420545876,1776263494949,-1859.1153,0.00014794,2]
[420545877,1776263494959,-533.54,0.00014794,2]
[420545878,1776263494970,-576.9,0.00014794,2]
[420545879,1776263494982,-1289.98,0.00014794,2]
[420545880,1776263494994,-1540.37,0.00014794,2]
[420545881,1776263495004,-1412.75,0.00014794,2]
[420545882,1776263495014,-729.56,0.00014794,2]
[420545883,1776263495027,-3172.34,0.00014794,2]
[420545884,1776263495038,-2515.23,0.00014794,2]
[420545885,1776263495048,-1966.97,0.00014794,2]
[420545886,1776263495058,-624.71,0.00014794,2]
[420545887,1776263495070,-500.0,0.00014794,2]
[420545888,1776263495082,-639.56,0.00014794,2]
[420545889,1776263495091,-3564.19,0.00014794,2]
[420545890,1776263495106,-2202.65,0.00014794,2]
[420545891,1776263495119,-644.76,0.00014794,2]
[420545892,1776263495133,-14225.47,0.00014794,2]
[420545893,1776263495156,-1429.77,0.00014794,2]
[420545894,1776263495178,-500.0,0.00014794,2]
[420545895,1776263495194,-3841.63,0.00014794,2]
[420545896,1776263495211,-2341.97,0.00014794,2]
[420545897,1776263495222,-588.56,0.00014794,2]
[420545898,1776263495235,-2716.01,0.00014794,2]
[420545899,1776263495249,-3232.39,0.00014794,2]
[420545900,1776263495263,-756.62,0.00014794,2]
[420545901,1776263495273,-500.0,0.00014794,2]
[420545902,1776263495290,-500.0,0.00014794,2]
[420545903,1776263495303,-500.0,0.00014794,2]
[420545904,1776263495315,-500.0,0.00014794,2]
[420545905,1776263495325,-512.75,0.00014794,2]
[420545906,1776263495339,-560.3,0.00014794,2]
[420545907,1776263495350,-500.0,0.00014794,2]
[420545908,1776263495360,-1546.15,0.00014794,2]
[420545909,1776263495371,-911.89,0.00014794,2]
[420545910,1776263495389,-2506.81,0.00014794,2]
[420545911,1776263495400,-6920.51668873,0.00014794,2]
[420545912,1776263495899,-4062.43394479,0.00013699,2]
[420545913,1776263495972,-136.27486421,0.00013699,2]
[420545914,1776263495985,-603.76513579,0.00013699,2]
[420545915,1776263496128,-201.57121821,0.00013699,2]
[420545916,1776263496139,-298.300135,0.00013699,2]
[420545917,1776263496148,-2332.61407665,0.00013699,2]
[420545918,1776263497195,-500.0,0.00010958,2]
[420545919,1776263497208,-74.0,0.00010958,2]
[420545920,1776263497222,-1866.09473235,0.00013699,2]
[420545921,1776263497233,-805.336354,0.00013699,2]
[420545922,1776263497243,-532.742682,0.00013699,2]
[420545923,1776263497253,-4198.708809,0.00013699,2]
[420545924,1776263497265,-298.300135,0.00013699,2]
[420545925,1776263497276,-805.336354,0.00013699,2]
[420545926,1776263497285,-532.742682,0.00013699,2]
[420545927,1776263497296,-4198.708809,0.00013699,2]
[420545928,1776263497309,-298.300135,0.00013699,2]
[420545929,1776263497319,-805.336354,0.00013699,2]
[420545930,1776263497329,-532.742682,0.00013699,2]
[420545931,1776263497339,-4198.708809,0.00013699,2]
[420545932,1776263497350,-298.300135,0.00013699,2]
[420545933,1776263497361,-532.742682,0.00013699,2]
[420545934,1776263497371,-805.336354,0.00013699,2]
[420545935,1776263497381,-4198.708809,0.00013699,2]
[420545936,1776263497393,-298.300135,0.00013699,2]
[420545937,1776263497403,-1080.100948,0.00013699,2]
[420545938,1776263497413,-805.336354,0.00013699,2]
[420545939,1776263497424,-142.19518428,0.00013699,2]
[420545945,1776264262160,-2549.83430093,3.526e-05,2]
[420545946,1776264262198,-5000.0,3.562e-05,2]
[420545947,1776264262232,-163.99007116,3.69e-05,2]
[420545948,1776264262265,-172.04,3.7e-05,2]
[420545949,1776264262298,-1013.0,3.858e-05,2]
[420545950,1776264262333,-319.0,3.86e-05,2]
[420545951,1776264262370,-362.88164043,4.865e-05,2]
[420545952,1776264264665,419.25398748,3.491e-05,2]
[420545953,1776264279847,-4580.74601252,3.491e-05,2]
[420545954,1776264279894,-163.99007116,4.59e-05,2]
[420545955,1776264473499,-513.0,6.523e-05,2]
[420545956,1776264473543,-4487.0,6.524e-05,2]
[420545957,1776264476142,-513.0,6.524e-05,2]
[420545958,1776264476179,-193.50828397,6.59e-05,2]
[420545959,1776264476206,-180.65,6.6e-05,2]
[420545960,1776264478655,203.80332758,6.459e-05,2]
[420545990,1776264632607,-549.17607925,8.387e-05,2]
[420545995,1776264639273,-502.3835556,8.387e-05,2]
[420545996,1776264639285,-528.58568516,8.387e-05,2]
[420545997,1776264639297,-155.35871416,8.437e-05,2]
[420545998,1776264639306,-300.0,8.486e-05,2]
[420545999,1776264639316,-300.0,8.486e-05,2]
[420546000,1776264639326,-1221.71911263,8.487e-05,2]
[420546001,1776264639338,-3778.28088737,8.487e-05,2]
[420546002,1776264639349,-539.0,8.487e-05,2]
[420546003,1776264639359,-263.27256461,8.573e-05,2]
[420546004,1776264639368,-600.0,8.77e-05,2]
[420546005,1776264639378,-500.0,9.057e-05,2]
[420546006,1776264639389,-420.0,9.335e-05,2]
[420546007,1776264639399,-500.0,9.4e-05,2]
[420546008,1776264639409,-1408.0,9.62e-05,2]
[420546009,1776264639420,-494.1,9.62e-05,2]
[420546010,1776264639429,-184.0,9.62e-05,2]
[420546011,1776264639439,-151.664,9.62e-05,2]
[420546012,1776264639449,-150.164,9.62e-05,2]
[420546013,1776264639459,-150.903,9.62e-05,2]
[420546014,1776264639470,-720.0,9.647e-05,2]
[420546015,1776264639480,-160.0,9.886e-05,2]
[420546016,1776264639492,-500.0,9.9e-05,2]
[420546017,1776264639502,-537.6845,0.00010214,2]
[420546018,1776264639514,-238.80320206,0.00010214,2]
[420546019,1776264639525,-2150.738,0.00010214,2]
[420546020,1776264639537,-587.0,0.00010268,2]
[420546021,1776264639547,-459.47900561,0.00010269,2]
[420546022,1776264639557,-183.32328271,0.00010437,2]
[420546023,1776264639569,-864.0,0.00010612,2]
[420546024,1776264639582,-225.74,0.00010685,2]
[420546025,1776264639594,-2766.3628448,0.00010757,2]
[420546026,1776264639605,-2230.315306,0.00010762,2]
[420546027,1776264639621,-11374.32928299,0.00010773,2]
[420546028,1776264639637,-220.49391409,0.00010856,2]
[420546029,1776264639649,-500.0,0.00010856,2]
[420546030,1776264639671,-500.0,0.00010856,2]
[420546031,1776264639682,-500.0,0.00010856,2]
[420546032,1776264639699,-500.0,0.00010856,2]
[420546033,1776264639715,-500.0,0.00010856,2]
[420546034,1776264639727,-500.0,0.00010856,2]
[420546035,1776264639743,-500.0,0.00010856,2]
[420546036,1776264639762,-500.0,0.00010856,2]
[420546037,1776264639779,-500.0,0.00010856,2]
[420546038,1776264639800,-500.0,0.00010856,2]
[420546039,1776264639818,-500.0,0.00010856,2]
[420546040,1776264639840,-500.0,0.00010856,2]
[420546041,1776264639863,-500.0,0.00010856,2]
[420546042,1776264639896,-500.0,0.00010856,2]
[420546043,1776264639925,-622.63832701,0.00010856,2]
[420546044,1776264639937,-500.0,0.00010856,2]
[420546045,1776264639967,-500.0,0.00010856,2]
[420546046,1776264639982,-500.0,0.00010856,2]
[420546047,1776264640012,-500.0,0.00010856,2]
[420546048,1776264640039,-500.0,0.00010856,2]
[420546049,1776264640058,-500.0,0.00010856,2]
[420546050,1776264640103,-385.8468289,0.00010856,2]
[420546052,1776264640128,-16627.75928415,0.00010857,2]
[420546056,1776264640200,-1341.25548051,0.00010857,2]
[420546057,1776264640252,-3762.27447946,0.00010857,2]
[420546065,1776264641460,-74.0827593,0.00010857,2]
[420546066,1776264641499,-709.60834328,0.00010857,2]
[420546067,1776264641518,-311.89404471,0.00010857,2]
[420546068,1776264641543,-3942.5889044,0.00010857,2]
[420546069,1776264641560,-25031.70019611,0.00010857,2]
[420546070,1776264641582,-10854.22642804,0.00010857,2]
[420546071,1776264641598,-975.0,0.00010857,2]
[420546072,1776264641624,-504.57097102,0.00010857,2]
[420546073,1776264641639,-354.69225279,0.00010857,2]
[420546074,1776264641669,-2208.71175107,0.00010857,2]
[420546075,1776264641683,-558.0,0.00010857,2]
[420546092,1776264643979,-11317.58831437,0.00010857,2]
[420546093,1776264643993,-3522.26041875,0.00010857,2]
[420546094,1776264644005,-15810.53395227,0.00010857,2]
[420546095,1776264644018,-1270.9060703,0.00010857,2]
[420546096,1776264644037,-403.79477644,0.00010857,2]
[420546097,1776264644048,-6926.84326751,0.00010857,2]
[420546098,1776264644063,-6035.67688669,0.00010857,2]
[420546099,1776264644079,-1909.34647797,0.00010857,2]
[420546100,1776264644091,-4368.23875983,0.00010857,2]
[420546102,1776264646923,-1257.42635663,0.00010857,2]
[420546103,1776264646935,-494.293216,0.00010857,2]
[420546104,1776264646977,-244785.66121031,0.00010857,2]
[420546105,1776264646989,-799.65154018,0.00010857,2]
[420546106,1776264647032,-17274.4098862,0.00010857,2]
[420546107,1776264647140,-5142.0,0.00010857,2]
[420546108,1776264647194,-6006.64888033,0.00010857,2]
[420546126,1776265263080,-300.0,7.599e-05,2]
[420546127,1776265263125,-300.0,7.6e-05,2]
[420546128,1776265263218,-1865.49860194,7.6e-05,2]
[420546142,1776265831928,-166.735909,3.736e-05,2]
[420546144,1776265831969,-940.84142141,6.942e-05,2]
[420546145,1776265832007,-537.59020837,7.012e-05,2]
[420546197,1776265838226,-4462.40979163,7.012e-05,2]
[420546198,1776265838340,-414.48375,7.083e-05,2]
[420546200,1776265838451,-155.21246114,7.191e-05,2]
[420546201,1776265838570,-300.0,7.599e-05,2]
[420546203,1776265838624,-300.0,7.599e-05,2]
[420546204,1776265838657,-17495.59813669,7.6e-05,2]
[420546205,1776265838702,-300.0,7.751e-05,2]
[420546206,1776265838773,-300.0,7.751e-05,2]
[420546207,1776265838843,-300.0,7.751e-05,2]
[420546209,1776265838891,-300.0,7.751e-05,2]
[420546210,1776265838941,-300.0,7.751e-05,2]
[420546211,1776265839007,-300.0,7.751e-05,2]
[420546212,1776265839040,-300.0,7.751e-05,2]
[420546213,1776265839057,-300.0,7.751e-05,2]
[420546214,1776265839088,-300.0,7.751e-05,2]
[420546215,1776265839103,-300.0,7.751e-05,2]
[420546216,1776265839131,-300.0,7.751e-05,2]
[420546217,1776265839142,-300.0,7.751e-05,2]
[420546218,1776265839154,-300.0,7.751e-05,2]
[420546219,1776265839170,-300.0,7.751e-05,2]
[420546220,1776265839182,-300.0,7.751e-05,2]
[420546221,1776265839194,-600.0,7.905e-05,2]
[420546222,1776265839205,-420.0,8.359e-05,2]
[420546223,1776265839221,-181.765,8.626e-05,2]
[420546224,1776265839238,-300.0,8.629e-05,2]
[420546225,1776265839249,-720.0,8.696e-05,2]